bitfinex/quotes_ETHUSD_20250326
["timestamp","ask_amount","ask_price","bid_price","bid_amount"]
[1742975372430,0.8083,2073.5,2073.1,4.82352]
[1742975372836,4.82315,2073.4,2073.0,14.5]
[1742975373016,4.82315,2073.4,2072.9,4.82414]
[1742975373017,4.82328,2073.3,2072.9,4.82414]
[1742975373800,0.8083,2073.2,2072.8,4.82438]
[1742975374119,0.8083,2073.2,2072.9,4.82414]
[1742975374727,0.8083,2073.2,2072.9,0.45016946]
[1742975375831,0.8083,2073.2,2072.9,4.82405]
[1742975376024,0.8083,2073.2,2073.0,4.82384]
[1742975377936,0.8083,2073.2,2072.9,4.82409]
[1742975378901,0.8083,2073.2,2072.9,4.82401]
[1742975379107,0.8083,2073.2,2073.0,4.82384]
[1742975379514,0.8083,2073.2,2073.0,14.5]
[1742975380440,0.8083,2073.2,2073.0,19.32381]
[1742975380636,5.37257,2073.6,2073.0,19.32378]
[1742975380854,0.7788,2073.5,2073.1,4.82355]
[1742975382751,5.6016,2073.5,2073.0,7.238643]
[1742975382913,5.6016,2073.5,2073.0,9.64761]
[1742975383308,5.64989612,2073.5,2073.0,9.64752]
[1742975383509,5.6016,2073.5,2073.1,4.82366]
[1742975383842,5.6016,2073.5,2073.0,4.82375]
[1742975384436,0.7788,2073.5,2073.1,4.8236]
[1742975384735,0.7788,2073.5,2073.1,4.82361]
[1742975385125,0.7788,2073.5,2073.2,4.82345]
[1742975385809,0.7788,2073.5,2073.1,4.82363]
[1742975386732,0.7788,2073.5,2073.1,9.64717]
[1742975386934,0.7788,2073.5,2073.1,4.82354]
[1742975387242,2.15701905,2073.5,2073.1,4.82354]
[1742975387421,6.97980905,2073.5,2073.1,4.82354]
[1742975388118,4.82314,2073.4,2072.9,19.32413]
[1742975388309,0.7788,2073.3,2072.9,9.64812]
[1742975388747,0.7788,2073.3,2073.0,0.45019995]
[1742975389131,0.7788,2073.3,2073.0,5.27409995]
[1742975389324,0.7788,2073.3,2073.1,4.82369]
[1742975390010,0.7788,2073.3,2073.0,4.8239]
[1742975391043,0.7788,2073.3,2072.9,4.82414]
[1742975391246,0.7788,2073.3,2073.0,4.82391]
[1742975391719,0.7788,2073.5,2073.1,4.82366]
[1742975391913,0.7788,2073.5,2073.2,4.82345]
[1742975392114,0.7788,2073.5,2073.1,4.82359]
[1742975392347,0.7788,2073.5,2073.1,4.82353]
[1742975393235,0.7788,2073.5,2073.1,9.64713]
[1742975393547,0.7788,2073.5,2073.1,4.82353]
[1742975393949,0.7788,2073.5,2073.2,4.82345]
[1742975394158,0.7788,2073.5,2073.2,6.08740101]
[1742975395550,0.7788,2073.5,2073.2,1.26395101]
[1742975395722,0.7788,2073.5,2073.1,4.82353]
[1742975396328,0.7788,2073.5,2073.1,9.64705]
[1742975397320,0.7788,2073.5,2073.1,4.82352]
[1742975397527,0.7846,2073.3,2073.0,0.98149552]
[1742975397743,0.7846,2073.3,2072.9,4.82393]
[1742975398059,0.7846,2073.3,2073.0,4.82381]
[1742975398236,0.7846,2073.3,2073.1,0.45089939]
[1742975398848,0.7846,2073.3,2073.1,5.27457939]
[1742975399050,1.3346,2073.5,2073.1,5.27457939]
[1742975399637,1.3346,2073.5,2073.2,0.45089939]
[1742975400224,6.15739,2073.5,2073.2,0.45089939]
[1742975400423,7.59144782,2073.5,2073.2,0.45089939]
[1742975400863,7.59144782,2073.5,2073.0,4.82388]
[1742975401159,6.15739,2073.5,2073.0,4.82388]
[1742975401967,5.60739,2073.5,2073.1,0.45100486]
[1742975403348,4.87139612,2073.4,2073.1,0.45100486]
[1742975403547,4.8231,2073.4,2073.1,0.45100486]
[1742975403845,4.8231,2073.4,2073.0,0.9712105]
[1742975404052,4.8231,2073.4,2072.9,10.211033]
[1742975404341,9.69451612,2073.4,2072.9,5.386973]
[1742975404547,4.87139612,2073.4,2072.9,5.386933]
[1742975404768,4.87139612,2073.4,2073.0,4.82391]
[1742975405074,4.8231,2073.4,2073.0,4.82392]
[1742975405241,4.82324,2073.3,2072.8,5.62973]
[1742975405437,5.60816,2073.2,2072.8,5.62979]
[1742975405758,0.7846,2073.2,2072.8,4.82439]
[1742975406134,0.7846,2073.2,2072.9,0.4511352]
[1742975407271,0.7846,2073.2,2073.0,0.4511352]
[1742975407838,0.7846,2073.2,2072.9,4.82414]
[1742975408046,5.60765,2073.4,2072.9,5.98992846]
[1742975408273,5.60765,2073.4,2072.9,1.16593846]
[1742975408772,5.60765,2073.4,2073.0,4.82383]
[1742975409272,5.60765,2073.4,2072.9,4.8241]
[1742975410668,0.7846,2073.4,2073.0,4.82377]
[1742975410861,5.60764,2073.4,2073.0,4.82377]
[1742975411045,6.416425,2073.3,2072.8,4.82429]
[1742975411466,5.37338,2073.3,2072.8,4.82429]
[1742975412056,0.55,2073.3,2072.9,4.82415]
[1742975412370,10.43085,2073.4,2072.9,4.82415]
[1742975412559,5.60766,2073.4,2072.9,4.82415]
[1742975413573,5.60759,2073.4,2072.9,9.64812]
[1742975413874,5.60768,2073.4,2073.0,0.7598]
[1742975414181,5.60768,2073.4,2072.9,9.64798]
[1742975414374,5.60768,2073.4,2073.0,4.82392]
[1742975414672,0.7846,2073.4,2073.0,4.82392]
[1742975414972,0.7846,2073.4,2073.0,9.64775]
[1742975415177,0.7846,2073.4,2073.0,10.88960846]
[1742975415536,4.82215,2073.8,2073.3,4.8232]
[1742975415836,3.751,2073.7,2073.3,4.82311]
[1742975416043,3.751,2073.7,2073.3,9.64624]
[1742975416374,3.751,2073.7,2073.4,4.82299]
[1742975417446,3.79929612,2073.7,2073.3,4.82319]
[1742975417641,3.751,2073.7,2073.3,4.82319]
[1742975418472,0.751,2073.5,2073.0,4.82372]
[1742975418677,0.751,2073.5,2073.1,4.8236]
[1742975421359,6.81453546,2073.5,2073.1,4.8236]
[1742975422053,4.82303,2073.4,2072.9,4.82415]
[1742975422254,6.81453546,2073.5,2073.0,4.82379]
[1742975422665,6.81453546,2073.5,2073.1,4.82368]
[1742975423784,4.82303,2073.4,2073.0,4.82379]
[1742975424473,5.57456,2073.2,2072.8,4.82437]
[1742975425055,0.751,2073.2,2072.8,9.64859]
[1742975425255,5.57453,2073.2,2072.8,4.82422]
[1742975426482,0.751,2073.2,2072.6,2.77083461]
[1742975426651,0.751,2073.2,2072.6,3.80481807]
[1742975428088,2.01103461,2072.9,2072.3,0.7611]
[1742975428283,0.86899612,2072.8,2072.2,27.822]
[1742975428967,0.8207,2072.8,2072.2,27.822]
[1742975429770,0.8207,2072.8,2072.2,42.322]
[1742975431259,0.23167728,2072.7,2072.2,42.322]
[1742975431583,0.8207,2072.8,2072.4,4.82522]
[1742975432086,0.23063825,2072.7,2072.4,4.82522]
[1742975432293,0.8207,2072.8,2072.5,14.5]
[1742975432601,0.23063825,2072.7,2072.5,14.5]
[1742975432898,0.8207,2072.8,2072.5,14.5]
[1742975433102,0.23041168,2072.6,2072.5,14.5]
[1742975433272,1.867607,2072.8,2072.5,14.5]
[1742975433461,0.23041168,2072.6,2072.5,14.5]
[1742975433662,1.867607,2072.8,2072.5,14.5]
[1742975433969,0.23041168,2072.6,2072.5,14.5]
[1742975434177,1.867607,2072.8,2072.5,14.5]
[1742975434789,0.23063825,2072.7,2072.5,14.5]
[1742975435292,0.23041168,2072.6,2072.5,14.5]
[1742975435458,0.8207,2072.8,2072.5,14.5]
[1742975435659,0.23041168,2072.6,2072.5,19.32506]
[1742975435860,3.8107,2073.0,2072.6,4.82484]
[1742975436568,3.8107,2073.0,2072.6,24.14952]
[1742975436777,0.8107,2073.0,2072.8,4.82438]
[1742975436986,10.20319,2073.2,2072.8,4.82438]
[1742975437156,0.8107,2073.2,2072.8,4.82438]
[1742975437361,0.8107,2073.2,2072.8,5.64048]
[1742975437562,7.23284434,2073.2,2072.7,9.64908]
[1742975437762,0.8107,2073.2,2072.9,4.82415]
[1742975438389,0.8107,2073.2,2072.6,15.3161]
[1742975438688,0.23206895,2073.1,2072.6,15.3161]
[1742975439100,0.23206895,2073.1,2072.7,2.01103461]
[1742975439497,0.23206895,2073.1,2072.8,4.82439]
[1742975439706,3.8107,2073.4,2073.0,4.82381]
[1742975440070,0.8107,2073.4,2073.0,4.82373]
[1742975441275,0.8107,2073.4,2073.0,4.8237]
[1742975441475,0.8107,2073.4,2073.1,4.82365]
[1742975442584,0.8107,2073.4,2073.0,4.8237]
[1742975442988,2.35740746,2073.4,2073.0,4.8237]
[1742975443973,2.35740746,2073.4,2073.0,9.64743]
[1742975444290,0.8107,2073.4,2073.1,4.8236]
[1742975447307,0.8107,2073.4,2072.9,20.14025]
[1742975447514,5.6337,2073.4,2072.9,20.1401]
[1742975448006,5.68213612,2073.4,2072.9,4.82405]
[1742975448602,5.63384,2073.4,2072.9,4.82405]
[1742975448786,0.8107,2073.4,2073.0,4.82392]
[1742975449398,2.35744546,2073.4,2073.0,4.82392]
[1742975449702,7.18046546,2073.4,2073.0,4.82392]
[1742975450275,7.18046546,2073.4,2072.9,4.82405]
[1742975450439,4.82323,2073.3,2072.9,4.82405]
[1742975450594,12.00362546,2073.4,2072.9,4.82405]
[1742975450795,8.23577062,2073.3,2072.7,24.68378]
[1742975451131,6.22473601,2073.3,2072.8,4.82422]
[1742975452047,0.7633,2073.2,2072.8,4.82422]
[1742975452248,4.82373,2073.1,2072.6,4.82473]
[1742975452405,6.2856236,2073.2,2072.7,4.82451]
[1742975452604,6.2856236,2073.2,2072.7,19.32451]
[1742975453506,6.2856236,2073.2,2072.8,4.82435]
[1742975453943,11.1091836,2073.2,2072.7,19.32451]
[1742975454148,0.94566927,2073.1,2072.7,19.32451]
[1742975454552,0.7633,2073.2,2072.8,5.6145]
[1742975455536,0.7633,2073.2,2072.9,4.82414]
[1742975455854,0.7633,2073.2,2072.8,5.6145]
[1742975457435,0.7633,2073.2,2072.8,10.43871]
[1742975457622,0.7633,2073.2,2072.9,14.5]
[1742975457807,2.01018907,2073.2,2072.9,14.5]
[1742975458551,2.01018907,2073.2,2072.9,19.32414]
[1742975460552,5.64679,2073.4,2072.9,24.14814]
[1742975460719,5.64679,2073.4,2072.9,19.324]
[1742975461649,5.64679,2073.4,2072.9,24.14797]
[1742975461948,3.8238,2073.4,2073.0,9.64751]
[1742975462150,0.8238,2073.6,2073.3,4.82322]
[1742975462513,0.8238,2073.6,2073.3,19.32322]
[1742975462712,0.8238,2073.6,2073.3,4.82322]
[1742975462942,0.8238,2073.6,2073.3,10.691926]
[1742975463258,5.64597,2073.8,2073.3,25.191926]
[1742975463562,5.69426612,2073.8,2073.4,4.82296]
[1742975464160,5.64625,2073.7,2073.2,19.32342]
[1742975464322,6.92953093,2073.7,2073.3,4.82322]
[1742975464527,5.64625,2073.7,2073.3,4.82322]
[1742975465650,5.64625,2073.7,2073.2,10.62361494]
[1742975465854,5.64643,2073.6,2073.1,4.82364]
[1742975466224,5.64643,2073.6,2073.1,4.82354]
[1742975467250,5.64643,2073.6,2073.1,9.64707]
[1742975467418,5.64643,2073.6,2073.2,4.8234]
[1742975468448,5.64643,2073.6,2073.1,7.775977]
[1742975468639,5.64643,2073.6,2073.2,4.82343]
[1742975468840,0.8238,2073.6,2073.2,4.82343]
[1742975471976,5.64646,2073.6,2073.1,7.775977]
[1742975472150,5.64646,2073.6,2073.1,4.82353]
[1742975472673,5.64646,2073.6,2073.1,19.32353]
[1742975474777,5.64646,2073.6,2073.2,4.82341]
[1742975476171,5.64646,2073.6,2073.2,19.32341]
[1742975476358,5.64646,2073.6,2073.2,4.82341]
[1742975476567,4.87126612,2073.5,2073.0,5.80297678]
[1742975476775,5.65232,2073.4,2073.0,20.30297678]
[1742975478454,4.82326,2073.3,2072.9,4.82413]
[1742975478646,0.8293,2073.2,2072.9,4.82413]
[1742975478842,0.8293,2073.2,2072.9,14.5]
[1742975479042,0.8293,2073.1,2072.6,4.82481]
[1742975479250,5.65311,2073.1,2072.6,4.82481]
[1742975479573,5.70140612,2073.1,2072.6,19.32481]
[1742975479742,5.70140612,2073.1,2072.7,4.82461]
[1742975479946,5.65311,2073.1,2072.7,4.82461]
[1742975480677,4.87224612,2073.0,2072.5,14.5]
[1742975480871,0.8293,2072.9,2072.5,14.5]
[1742975481271,0.8293,2072.9,2072.4,0.7566]
[1742975481784,0.55,2073.3,2072.8,4.82418]
[1742975481951,0.55,2073.3,2072.9,4.82406]
[1742975481952,5.37324,2073.3,2072.9,4.82406]
[1742975482495,0.55,2073.3,2072.9,4.82406]
[1742975482849,0.8293,2073.4,2072.9,1.01788939]
[1742975483097,0.8293,2073.4,2073.1,4.8236]
[1742975483754,0.8293,2073.4,2073.2,4.82342]
[1742975484102,0.8293,2073.4,2073.1,4.8236]
[1742975484980,2.03445646,2073.6,2073.3,4.82321]
[1742975485377,0.7865,2073.6,2073.4,4.82288]
[1742975485596,3.7865,2073.8,2073.4,9.64568]
[1742975485792,3.7865,2073.8,2073.5,4.82274]
[1742975486000,0.7865,2073.8,2073.5,4.82274]
[1742975487923,0.7865,2074.2,2073.8,4.82186]
[1742975488080,0.7865,2074.2,2073.9,4.82174]
[1742975488411,0.7865,2074.5,2073.9,7.65394461]
[1742975488612,0.7865,2074.5,2074.1,4.8213]
[1742975489113,3.7865,2074.5,2074.2,4.82104]
[1742975489296,0.7865,2074.5,2074.2,4.82104]
[1742975489475,0.7865,2074.5,2074.3,4.82088]
[1742975489681,0.7865,2074.7,2074.4,4.82057]
[1742975490016,3.8365,2074.9,2074.5,4.82038]
[1742975490207,0.8365,2074.9,2074.4,4.82056]
[1742975490384,0.8365,2074.9,2074.5,4.82039]
[1742975490967,8.6561,2074.9,2074.4,4.82056]
[1742975491168,6.167288,2074.8,2074.2,4.82094]
[1742975491502,6.167288,2074.8,2074.3,4.82087]
[1742975492114,3.05,2074.9,2074.4,0.8212]
[1742975492325,3.05,2074.9,2074.5,4.82027]
[1742975493324,7.86953,2074.9,2074.5,4.82027]
[1742975493880,4.86953,2074.9,2074.5,4.82027]
[1742975494378,0.05,2074.9,2074.5,4.82027]
[1742975495621,4.86952,2074.9,2074.5,4.82027]
[1742975497316,4.81975,2074.8,2074.4,5.64177]
[1742975497518,7.61728461,2074.8,2074.3,4.82088]
[1742975497690,4.86828612,2074.7,2074.3,4.82088]
[1742975497877,4.81999,2074.7,2074.3,4.82088]
[1742975498411,7.66561073,2074.8,2074.3,4.82088]
[1742975498580,4.22970445,2074.8,2074.2,5.6422]
[1742975498785,2.01103461,2074.6,2074.0,10.20761]
[1742975498986,5.60694,2074.5,2074.1,4.82135]
[1742975499287,0.7865,2074.5,2074.1,4.82135]
[1742975499670,5.60696,2074.5,2074.1,4.82135]
[1742975499917,5.60696,2074.5,2074.0,5.64261]
[1742975500118,5.60696,2074.5,2073.8,0.7548]
[1742975500119,1.24383146,2074.4,2073.8,0.7548]
[1742975500353,0.2438816,2074.4,2074.0,9.64284]
[1742975500490,0.2438816,2074.4,2074.1,4.82133]
[1742975501821,5.0645916,2074.4,2074.0,4.82137]
[1742975501983,5.58902,2074.3,2073.8,4.82185]
[1742975502186,0.24127738,2074.2,2073.9,4.82182]
[1742975502506,0.2410511,2074.1,2073.7,4.82209]
[1742975502811,4.86967612,2074.1,2073.7,4.82209]
[1742975503011,0.7681,2074.0,2073.7,4.82209]
[1742975503209,5.82840193,2074.0,2073.6,4.82242]
[1742975503582,5.87669805,2074.0,2073.6,4.82242]
[1742975504711,5.87669805,2074.0,2073.5,5.787144]
[1742975505077,5.82840193,2074.0,2073.5,4.82259]
[1742975505278,4.82223,2073.8,2073.3,32.64404]
[1742975505478,0.23995538,2073.7,2073.3,32.64404]
[1742975505680,5.5904,2073.7,2073.2,5.57816]
[1742975505886,0.23860585,2073.6,2073.2,4.82336]
[1742975506225,4.82277,2073.5,2073.1,4.82357]
[1742975506401,4.87106612,2073.5,2073.1,4.82357]
[1742975506720,0.23825954,2073.4,2073.2,4.82345]
[1742975506903,0.23825954,2073.4,2073.1,4.82357]
[1742975507106,4.82255,2073.6,2073.2,4.82345]
[1742975507306,0.7681,2073.3,2072.9,4.824]
[1742975507489,5.59144,2073.3,2072.8,4.82422]
[1742975507689,0.23780673,2073.2,2072.8,4.82422]
[1742975508091,5.59144,2073.3,2072.8,4.82422]
[1742975508304,0.23707858,2073.2,2072.8,4.82422]
[1742975508496,5.59144,2073.3,2072.8,4.82422]
[1742975508698,5.06063858,2073.2,2072.8,4.82422]
[1742975508912,0.23707858,2073.2,2072.8,4.82422]
[1742975509223,10.41479,2073.3,2072.8,4.82422]
[1742975509422,0.23685214,2073.1,2072.8,4.82422]
[1742975509600,5.06053858,2073.2,2072.8,4.82422]
[1742975509800,0.23662568,2073.0,2072.8,4.82422]
[1742975510034,5.59144,2073.3,2072.8,4.82422]
[1742975510202,0.2363992,2072.9,2072.8,4.82422]
[1742975510402,5.59144,2073.3,2072.8,4.82422]
[1742975510733,10.41482,2073.3,2072.8,4.82422]
[1742975511035,5.10952543,2073.2,2072.8,4.82437]
[1742975511386,5.06122931,2073.2,2072.8,4.82437]
[1742975511719,5.06122931,2073.2,2072.7,10.62325827]
[1742975511929,5.06122931,2073.2,2072.7,5.79874827]
[1742975512220,4.82372,2073.1,2072.7,4.8245]
[1742975512402,4.82394,2073.0,2072.5,5.57968]
[1742975512603,1.04006324,2072.9,2072.5,5.57968]
[1742975512938,1.04006324,2072.9,2072.6,4.82485]
[1742975513324,1.04006324,2072.9,2072.7,4.82461]
[1742975513626,1.04006324,2072.9,2072.6,4.82485]
[1742975514354,1.04006324,2072.9,2072.6,9.64951]
[1742975514653,1.04006324,2072.9,2072.6,4.82475]
[1742975515385,6.50079934,2072.9,2072.4,4.82511]
[1742975515561,4.82452,2072.8,2072.4,4.82511]
[1742975515756,5.06093108,2072.7,2072.3,4.82552]
[1742975516074,0.23629108,2072.7,2072.4,4.82531]
[1742975516576,0.23131096,2072.6,2072.4,4.82531]
[1742975516734,4.82452,2072.8,2072.4,4.82531]
[1742975517058,0.23153748,2072.7,2072.4,4.82531]
[1742975517564,0.23131096,2072.6,2072.4,4.8252]
[1742975517749,5.928513,2072.8,2072.4,4.8252]
[1742975518061,0.23118773,2072.7,2072.4,4.8252]
[1742975518467,1.103993,2072.8,2072.4,9.65033]
[1742975518630,0.23085491,2072.6,2072.4,9.65033]
[1742975518830,11.03972998,2072.9,2072.4,9.65033]
[1742975519046,0.23068151,2072.5,2072.4,9.65033]
[1742975519250,0.803,2072.9,2072.6,9.64945]
[1742975519454,0.803,2072.9,2072.6,4.8247]
[1742975519641,0.803,2072.9,2072.6,9.64946]
[1742975520147,0.803,2072.9,2072.6,4.8247]
[1742975520459,0.803,2072.9,2072.6,9.64945]
[1742975520761,0.803,2072.9,2072.6,4.8247]
[1742975522545,10.40325,2073.1,2072.7,4.82458]
[1742975522745,0.23186717,2073.0,2072.7,4.82458]
[1742975523765,0.23186717,2073.0,2072.7,9.64898]
[1742975523969,0.23186717,2073.0,2072.8,4.82437]
[1742975525041,0.23186717,2073.0,2072.7,4.8244]
[1742975525446,0.23186717,2073.0,2072.8,4.82433]
[1742975527242,0.23186717,2073.0,2072.8,4.8243]
[1742975529056,0.23186717,2073.0,2072.7,4.82461]
[1742975529272,0.23186717,2073.0,2072.7,9.64913]
[1742975529871,0.23186717,2073.0,2072.7,4.8245]
[1742975531770,0.23186717,2073.0,2072.6,4.82483]
[1742975531974,5.05587717,2073.0,2072.7,4.82461]
[1742975532681,0.23186717,2073.0,2072.7,4.82461]
[1742975534348,5.6571,2072.9,2072.5,4.82507]
[1742975534560,5.05598251,2072.8,2072.4,9.65052]
[1742975534754,0.23159251,2072.8,2072.5,4.82506]
[1742975535550,0.23159251,2072.8,2072.5,4.82494]
[1742975535754,0.23159251,2072.8,2072.6,4.82485]
[1742975536573,0.23159251,2072.8,2072.5,4.82494]
[1742975536885,0.23159251,2072.8,2072.5,9.64992]
[1742975537380,0.23159251,2072.8,2072.5,4.82494]
[1742975537562,0.8328,2072.7,2072.3,4.82541]
[1742975537738,9.88072251,2072.8,2072.4,4.82523]
[1742975537944,0.23159251,2072.8,2072.6,4.82471]
[1742975538151,5.65649,2073.1,2072.6,5.60741]
[1742975538358,0.23164254,2073.0,2072.6,5.60741]
[1742975538558,0.23164254,2073.0,2072.6,6.36925446]
[1742975538974,0.23164254,2073.0,2072.7,4.82454]
[1742975540578,0.23164254,2073.0,2072.8,4.82426]
[1742975540886,5.65627,2073.2,2072.8,4.82426]
[1742975541048,0.23142125,2072.9,2072.8,4.82426]
[1742975541253,5.65627,2073.2,2072.8,4.82426]
[1742975541455,0.23147439,2072.9,2072.8,4.82426]
[1742975541655,5.65627,2073.2,2072.8,4.82426]
[1742975541855,0.23147439,2072.9,2072.8,4.82426]
[1742975542081,5.65627,2073.2,2072.8,4.82426]
[1742975542289,0.23158066,2072.9,2072.8,4.82426]
[1742975542457,5.65627,2073.2,2072.8,4.82426]
[1742975542658,0.23158066,2072.9,2072.8,4.82426]
[1742975542861,4.82369,2073.1,2072.8,4.82426]
[1742975543060,0.23158066,2072.9,2072.7,4.82461]
[1742975543259,4.82369,2073.1,2072.7,4.82461]
[1742975543482,0.23135419,2072.8,2072.7,4.82461]
[1742975543985,4.82369,2073.1,2072.7,4.82461]
[1742975544169,0.2318071,2073.0,2072.7,4.82461]
[1742975545191,5.60258,2072.9,2072.5,4.82504]
[1742975545402,4.82474,2072.7,2072.3,4.82554]
[1742975545689,0.23090119,2072.6,2072.3,4.82554]
[1742975546760,0.23090119,2072.6,2072.4,4.82529]
[1742975546961,4.82446,2072.8,2072.4,4.82529]
[1742975547187,6.44465017,2072.8,2072.4,4.82529]
[1742975548296,0.2311277,2072.7,2072.4,4.82529]
[1742975548589,5.60247,2072.9,2072.5,4.82507]
[1742975548789,0.23135419,2072.8,2072.5,4.82507]
[1742975549495,0.23135419,2072.8,2072.4,6.83629461]
[1742975549667,0.23135419,2072.8,2072.5,4.82497]
[1742975551898,0.23135419,2072.8,2072.4,6.83624461]
[1742975552197,0.23135419,2072.8,2072.5,4.825]
[1742975554675,0.23135419,2072.8,2072.4,6.83624461]
[1742975554878,5.05575419,2072.8,2072.4,6.83624461]
[1742975555065,5.05575419,2072.8,2072.4,4.82521]
[1742975555801,6.66875242,2072.7,2072.3,4.82555]
[1742975555981,0.23058052,2072.6,2072.3,4.82555]
[1742975558286,5.05559052,2072.6,2072.2,0.95118921]
[1742975558492,4.82543,2072.4,2072.0,9.65224]
[1742975558796,0.22754208,2072.3,2072.0,9.65224]
[1742975559481,0.22754208,2072.3,2072.0,9.65225]
[1742975559778,5.60345,2072.5,2072.0,4.8261]
[1742975559975,0.22750633,2072.4,2072.1,4.82601]
[1742975560296,0.22750633,2072.4,2072.2,4.82577]
[1742975560503,0.22750633,2072.4,2072.2,4.82567]
[1742975560881,0.22750633,2072.4,2072.3,4.82555]
[1742975561282,4.82472,2072.7,2072.3,4.82555]
[1742975561486,0.22862281,2072.4,2072.3,4.82555]
[1742975561691,4.82472,2072.7,2072.3,4.82555]
[1742975562205,0.22923543,2072.6,2072.3,9.65089]
[1742975562405,13.41704,2072.8,2072.3,9.65089]
[1742975562705,0.22883084,2072.7,2072.4,4.8253]
[1742975563074,10.54757461,2072.8,2072.4,4.8253]
[1742975563276,0.22871068,2072.6,2072.4,4.8253]
[1742975563477,10.54757461,2072.8,2072.4,4.8253]
[1742975563784,4.82466,2072.7,2072.3,4.82534]
[1742975563971,0.22871068,2072.6,2072.3,4.82534]
[1742975568711,0.22871068,2072.6,2072.2,6.83681461]
[1742975568912,0.22871068,2072.6,2072.2,4.82578]
[1742975569209,6.13138221,2072.6,2072.1,5.64408]
[1742975569385,0.768,2072.5,2072.1,5.64408]
[1742975569580,0.22847018,2072.4,2072.1,5.64408]
[1742975570195,0.22847018,2072.4,2072.0,4.82616]
[1742975570914,0.22847018,2072.4,2072.0,4.8261]
[1742975571105,0.22847018,2072.4,2072.0,4.82611]
[1742975571911,0.22847018,2072.4,2072.1,4.82586]
[1742975574211,0.22847018,2072.4,2071.9,6.59860006]
[1742975574415,0.22847018,2072.4,2071.9,5.64465]
[1742975574416,4.82565,2072.3,2071.9,5.64465]
[1742975574620,0.22785699,2072.2,2072.0,4.82621]
[1742975574779,4.82548,2072.4,2072.0,4.82621]
[1742975574983,0.22808361,2072.3,2072.0,4.82621]
[1742975575420,0.22808361,2072.3,2072.0,4.82607]
[1742975575683,4.82533,2072.4,2072.0,4.82607]
[1742975575984,0.7674,2072.0,2071.7,4.82686]
[1742975576191,0.22553136,2071.9,2071.6,4.82698]
[1742975576396,0.7674,2072.0,2071.7,4.82694]
[1742975577091,0.22553136,2071.9,2071.7,9.65378]
[1742975577815,0.22553136,2071.9,2071.7,4.82684]
[1742975579018,0.22553136,2071.9,2071.5,6.83831461]
[1742975579213,5.05210136,2071.9,2071.5,4.82728]
[1742975579417,5.6340515,2071.9,2071.5,4.82728]
[1742975579581,0.8074815,2071.9,2071.5,9.65451]
[1742975579787,0.22553136,2071.9,2071.6,4.82705]
[1742975580187,0.22553136,2071.9,2071.7,6.83796461]
[1742975580515,0.22553136,2071.9,2071.7,6.83788461]
[1742975580690,0.22553136,2071.9,2071.7,4.82685]
[1742975582335,0.22553136,2071.9,2071.7,4.82678]
[1742975582694,0.22553136,2071.9,2071.8,4.82672]
[1742975582894,0.22553136,2071.9,2071.8,5.79207]
[1742975583199,5.59283,2072.4,2072.0,4.82609]
[1742975583401,0.20601371,2072.3,2072.1,4.82597]
[1742975584023,0.20601371,2072.3,2072.0,22.16025461]
[1742975584193,0.20601371,2072.3,2072.0,19.32612]
[1742975584388,0.20601371,2072.3,2072.0,14.5]
[1742975584595,5.03160371,2072.3,2072.0,14.5]
[1742975584796,1.27328169,2072.3,2071.8,7.66069461]
[1742975585016,5.03165371,2072.3,2071.8,10.47621]
[1742975585612,5.03165371,2072.3,2071.9,4.82645]
[1742975588391,9.85740371,2072.3,2071.8,4.82655]
[1742975588594,4.82579,2072.2,2071.8,4.82655]
[1742975588797,0.20472175,2072.1,2071.8,4.82655]
[1742975589105,0.97212175,2072.1,2071.8,4.82655]
[1742975589727,6.86052693,2072.1,2071.7,4.82691]
[1742975589932,0.97212175,2072.1,2071.7,4.82679]
[1742975590103,0.20472175,2072.1,2071.8,4.82655]
[1742975590297,0.20472175,2072.1,2071.8,9.65316]
[1742975590497,5.63427,2072.3,2071.8,9.65316]
[1742975590698,0.20465457,2072.0,2071.8,4.82655]
[1742975591004,11.505929,2072.3,2071.9,4.82648]
[1742975591195,6.680249,2072.3,2071.8,9.65306]
[1742975591401,0.20516118,2072.2,2071.8,9.65306]
[1742975591612,6.680249,2072.3,2071.8,9.65306]
[1742975591813,6.18144172,2072.2,2071.8,4.82651]
[1742975592009,4.82602,2072.1,2071.7,4.82693]
[1742975592211,4.82474,2072.7,2072.1,6.83705461]
[1742975592409,4.825,2072.6,2072.2,14.5]
[1742975592615,4.82462,2072.7,2072.2,4.82572]
[1742975592812,9.64938,2072.7,2072.2,4.82572]
[1742975593011,0.8087,2072.5,2071.9,4.82629]
[1742975593212,5.63468,2072.2,2071.7,4.82692]
[1742975593413,5.63484,2072.1,2071.6,4.82718]
[1742975593606,5.68313612,2072.1,2071.6,4.82718]
[1742975593817,4.82625,2072.0,2071.6,4.82718]
[1742975594105,4.82625,2072.0,2071.4,9.70806452]
[1742975594106,0.8087,2071.8,2071.4,8.92966452]
[1742975594829,5.63543,2071.8,2071.4,8.92966452]
[1742975595036,0.16786914,2071.7,2071.4,8.92966452]
[1742975595602,0.16786914,2071.7,2071.4,8.92984452]
[1742975595803,0.16786914,2071.7,2071.5,4.8274]
[1742975596015,6.88704207,2072.0,2071.6,4.82718]
[1742975596216,1.17130621,2071.9,2071.5,6.83841461]
[1742975596535,0.16741762,2071.8,2071.5,6.83841461]
[1742975597114,0.16741762,2071.8,2071.6,4.82713]
[1742975597415,0.16729721,2071.7,2071.5,4.82737]
[1742975597615,2.06074207,2072.0,2071.6,4.82718]
[1742975597835,0.16780394,2071.9,2071.6,4.82718]
[1742975599039,0.16780394,2071.9,2071.6,9.6542]
[1742975599230,0.16780394,2071.9,2071.6,4.82702]
[1742975599430,0.16780394,2071.9,2071.8,4.82672]
[1742975599823,3.8087,2072.2,2071.8,4.82672]
[1742975600041,0.16783986,2072.1,2071.8,4.82657]